[Event "Late-Titled-Tuesday-Blitz-October-24-2023"]
[Site "Chess.com"]
[Date "2023.10.24"]
[Round "10"]
[White "dennisodessa"]
[Black "Lion-Al-Messi"]
[Result "1-0"]
[WhiteElo "2578"]
[BlackElo "2649"]
[TimeControl "180+1"]
[EndTime "15:52:32 PDT"]
[Termination "dennisodessa won by resignation"]

1. d4 {[%clk 0:02:59.4]} 1... d5 {[%clk 0:02:59.7]} 2. c4 {[%clk 0:02:59.4]}
2... c6 {[%clk 0:03:00.1]} 3. Nf3 {[%clk 0:02:59.3]} 3... Nf6 {[%clk 0:02:59.6]}
4. Nbd2 {[%clk 0:02:58]} 4... Nbd7 {[%clk 0:02:58.8]} 5. e3 {[%clk 0:02:57.8]}
5... e6 {[%clk 0:02:59.2]} 6. b3 {[%clk 0:02:58.2]} 6... Ne4 {[%clk 0:02:56.6]}
7. Bd3 {[%clk 0:02:57.5]} 7... f5 {[%clk 0:02:56.4]} 8. O-O {[%clk 0:02:57.1]}
8... Ndf6 {[%clk 0:02:56.6]} 9. Bb2 {[%clk 0:02:52.8]} 9... Bd6 {[%clk
0:02:56.6]} 10. Ne5 {[%clk 0:02:53.2]} 10... Nxd2 {[%clk 0:02:56.5]} 11. Qxd2
{[%clk 0:02:53.2]} 11... Bxe5 {[%clk 0:02:56.9]} 12. dxe5 {[%clk 0:02:54.1]}
12... Ne4 {[%clk 0:02:57.3]} 13. Bxe4 {[%clk 0:02:44.3]} 13... fxe4 {[%clk
0:02:57.2]} 14. f3 {[%clk 0:02:44.3]} 14... exf3 {[%clk 0:02:53.4]} 15. Rxf3
{[%clk 0:02:45.2]} 15... Bd7 {[%clk 0:02:48.5]} 16. Raf1 {[%clk 0:02:28]} 16...
Qe7 {[%clk 0:02:39.1]} 17. e4 {[%clk 0:01:47.2]} 17... dxe4 {[%clk 0:02:31.9]}
18. Rf7 {[%clk 0:01:46.5]} 18... Qc5+ {[%clk 0:02:29.4]} 19. Bd4 {[%clk
0:01:46.7]} 19... Qa3 {[%clk 0:02:23.3]} 20. Bb6 {[%clk 0:01:31.2]} 20... Qe7
{[%clk 0:01:56.7]} 21. Rxe7+ {[%clk 0:01:30.1]} 21... Kxe7 {[%clk 0:01:57.6]}
22. Qg5+ {[%clk 0:01:20.3]} 22... Ke8 {[%clk 0:01:56.5]} 23. Bc5 {[%clk
0:01:19.8]} 1-0

[Event "Late-Titled-Tuesday-Blitz-October-24-2023"]
[Site "Chess.com"]
[Date "2023.10.24"]
[Round "10"]
[White "familijatop71"]
[Black "tylityli"]
[Result "0-1"]
[WhiteElo "2128"]
[BlackElo "2295"]
[TimeControl "180+1"]
[EndTime "15:53:18 PDT"]
[Termination "tylityli won by checkmate"]

1. e4 {[%clk 0:03:00.9]} 1... e5 {[%clk 0:02:57.9]} 2. Nf3 {[%clk 0:02:57.6]}
2... Nc6 {[%clk 0:02:57.9]} 3. Bc4 {[%clk 0:02:56.7]} 3... Nf6 {[%clk
0:02:57.3]} 4. d3 {[%clk 0:02:56.7]} 4... Be7 {[%clk 0:02:56.9]} 5. O-O {[%clk
0:02:56.3]} 5... O-O {[%clk 0:02:57.8]} 6. Nc3 {[%clk 0:02:54.9]} 6... d5 {[%clk
0:02:58.7]} 7. Nxd5 {[%clk 0:02:51.5]} 7... Bg4 {[%clk 0:02:56]} 8. Nxe7+ {[%clk
0:02:47.1]} 8... Qxe7 {[%clk 0:02:55]} 9. h3 {[%clk 0:02:46.9]} 9... Bh5 {[%clk
0:02:54.6]} 10. c3 {[%clk 0:02:45.8]} 10... Rad8 {[%clk 0:02:53.2]} 11. Qe2
{[%clk 0:02:38.9]} 11... a6 {[%clk 0:02:52.4]} 12. Bb3 {[%clk 0:02:35.8]} 12...
b5 {[%clk 0:02:52]} 13. Bg5 {[%clk 0:02:26]} 13... h6 {[%clk 0:02:51.5]} 14.
Bxf6 {[%clk 0:02:14.9]} 14... Qxf6 {[%clk 0:02:49.6]} 15. g4 {[%clk 0:02:15.3]}
15... Bg6 {[%clk 0:02:44.8]} 16. Nh2 {[%clk 0:02:01]} 16... Qh4 {[%clk
0:02:40.3]} 17. Qf3 {[%clk 0:01:50.4]} 17... Rd6 {[%clk 0:02:38.1]} 18. Rad1
{[%clk 0:01:43.1]} 18... Rfd8 {[%clk 0:02:35.8]} 19. Qg3 {[%clk 0:01:33.4]}
19... Qxg3+ {[%clk 0:02:33.2]} 20. fxg3 {[%clk 0:01:33.3]} 20... Rxd3 {[%clk
0:02:33.9]} 21. Rxd3 {[%clk 0:01:28.5]} 21... Rxd3 {[%clk 0:02:34.8]} 22. Bd5
{[%clk 0:01:19.8]} 22... Ne7 {[%clk 0:02:31.7]} 23. Bb7 {[%clk 0:01:07.6]} 23...
Rxg3+ {[%clk 0:02:17.6]} 24. Kf2 {[%clk 0:01:07.2]} 24... Rxh3 {[%clk
0:02:16.9]} 25. Kg2 {[%clk 0:01:07.7]} 25... Rd3 {[%clk 0:02:08.1]} 26. Bxa6
{[%clk 0:01:07.3]} 26... Bxe4+ {[%clk 0:02:06.5]} 27. Kg1 {[%clk 0:01:07.3]}
27... Rg3+ {[%clk 0:01:49.3]} 28. Kf2 {[%clk 0:01:07.5]} 28... Rg2+ {[%clk
0:01:49.5]} 29. Ke3 {[%clk 0:01:08]} 29... Bc6 {[%clk 0:01:49.5]} 30. Nf3 {[%clk
0:01:04.4]} 30... Nd5+ {[%clk 0:01:44.4]} 31. Kd3 {[%clk 0:00:59.4]} 31... Nf4+
{[%clk 0:01:43.8]} 32. Ke3 {[%clk 0:00:59.8]} 32... Re2# {[%clk 0:01:43.2]} 0-1

[Event "Late-Titled-Tuesday-Blitz-October-24-2023"]
[Site "Chess.com"]
[Date "2023.10.24"]
[Round "10"]
[White "The_Straightforward_Rook"]
[Black "BeanScreen"]
[Result "0-1"]
[WhiteElo "2567"]
[BlackElo "2709"]
[TimeControl "180+1"]
[EndTime "15:53:21 PDT"]
[Termination "BeanScreen won by resignation"]

1. d4 {[%clk 0:02:55.8]} 1... d5 {[%clk 0:02:59]} 2. Nf3 {[%clk 0:02:55.5]} 2...
e6 {[%clk 0:02:58.6]} 3. c4 {[%clk 0:02:55.3]} 3... a6 {[%clk 0:02:57.6]} 4.
cxd5 {[%clk 0:02:45.9]} 4... exd5 {[%clk 0:02:57.3]} 5. Nc3 {[%clk 0:02:45.5]}
5... h6 {[%clk 0:02:56.5]} 6. h3 {[%clk 0:02:38.2]} 6... Nf6 {[%clk 0:02:55.1]}
7. Qb3 {[%clk 0:02:37.8]} 7... Bd6 {[%clk 0:02:48.7]} 8. Bd2 {[%clk 0:02:30.8]}
8... c6 {[%clk 0:02:40.1]} 9. e3 {[%clk 0:02:26.8]} 9... O-O {[%clk 0:02:36.3]}
10. Bd3 {[%clk 0:02:26]} 10... Qe7 {[%clk 0:02:35.8]} 11. O-O-O {[%clk
0:02:21.9]} 11... a5 {[%clk 0:02:30.7]} 12. g4 {[%clk 0:02:14.5]} 12... Ne4
{[%clk 0:02:29]} 13. Be1 {[%clk 0:01:49.9]} 13... Na6 {[%clk 0:02:09.4]} 14. Kb1
{[%clk 0:01:37.6]} 14... f5 {[%clk 0:01:56.9]} 15. Rg1 {[%clk 0:01:18.9]} 15...
Nxc3+ {[%clk 0:01:46]} 16. bxc3 {[%clk 0:01:06.2]} 16... fxg4 {[%clk 0:01:45.8]}
17. Nd2 {[%clk 0:00:59.1]} 17... g3 {[%clk 0:01:41.8]} 18. Ne4 {[%clk
0:00:45.5]} 18... a4 {[%clk 0:01:35.2]} 0-1

[Event "Late-Titled-Tuesday-Blitz-October-24-2023"]
[Site "Chess.com"]
[Date "2023.10.24"]
[Round "10"]
[White "Makswolf200817"]
[Black "Lennis93"]
[Result "1-0"]
[WhiteElo "2646"]
[BlackElo "2757"]
[TimeControl "180+1"]
[EndTime "15:53:23 PDT"]
[Termination "Makswolf200817 won by resignation"]

1. Nf3 {[%clk 0:03:00.9]} 1... d5 {[%clk 0:02:59.7]} 2. e3 {[%clk 0:03:01]} 2...
Nf6 {[%clk 0:02:59.1]} 3. c4 {[%clk 0:03:01.2]} 3... g6 {[%clk 0:02:58.8]} 4. b3
{[%clk 0:02:59]} 4... Bg7 {[%clk 0:02:58.9]} 5. Bb2 {[%clk 0:02:59.6]} 5... O-O
{[%clk 0:02:58.9]} 6. Be2 {[%clk 0:02:57.4]} 6... c5 {[%clk 0:02:58.8]} 7. cxd5
{[%clk 0:02:57.1]} 7... Nxd5 {[%clk 0:02:59.7]} 8. Bxg7 {[%clk 0:02:52.2]} 8...
Kxg7 {[%clk 0:03:00.6]} 9. O-O {[%clk 0:02:52.6]} 9... Nc6 {[%clk 0:03:00.5]}
10. a3 {[%clk 0:02:51.3]} 10... b6 {[%clk 0:02:57.4]} 11. Qc2 {[%clk 0:02:51.1]}
11... Bb7 {[%clk 0:02:57.6]} 12. Rd1 {[%clk 0:02:48.8]} 12... Rc8 {[%clk
0:02:56.8]} 13. Nc3 {[%clk 0:02:43.4]} 13... e6 {[%clk 0:02:55.5]} 14. Ne4
{[%clk 0:02:37.3]} 14... Qe7 {[%clk 0:02:46.5]} 15. Qb2+ {[%clk 0:02:34.6]}
15... e5 {[%clk 0:02:46.6]} 16. h4 {[%clk 0:02:18.4]} 16... Nf6 {[%clk
0:02:45.5]} 17. Ng3 {[%clk 0:02:15.8]} 17... e4 {[%clk 0:02:40.1]} 18. Ng5
{[%clk 0:02:15.4]} 18... Qe5 {[%clk 0:02:40.1]} 19. Qc2 {[%clk 0:02:12.1]} 19...
Rfe8 {[%clk 0:02:31.1]} 20. d3 {[%clk 0:02:10.3]} 20... exd3 {[%clk 0:02:28.6]}
21. Bxd3 {[%clk 0:02:10.9]} 21... h6 {[%clk 0:02:20]} 22. Nxf7 {[%clk
0:02:03.2]} 22... Kxf7 {[%clk 0:02:20.1]} 23. Bxg6+ {[%clk 0:02:03.4]} 23... Kf8
{[%clk 0:02:18.6]} 24. Bxe8 {[%clk 0:02:03.1]} 24... Qxe8 {[%clk 0:02:15.9]} 25.
Qf5 {[%clk 0:01:55.5]} 25... Qf7 {[%clk 0:02:15.5]} 26. Rd6 {[%clk 0:01:48.1]}
26... Ke7 {[%clk 0:01:45.9]} 27. Ne4 {[%clk 0:01:43.9]} 27... Nd4 {[%clk
0:01:32.1]} 28. exd4 {[%clk 0:01:14.3]} 28... Bxe4 {[%clk 0:01:23.4]} 29. Qe5+
{[%clk 0:01:14.5]} 1-0

[Event "Late-Titled-Tuesday-Blitz-October-24-2023"]
[Site "Chess.com"]
[Date "2023.10.24"]
[Round "10"]
[White "UK_23"]
[Black "Nekoo04"]
[Result "1-0"]
[WhiteElo "2405"]
[BlackElo "2260"]
[TimeControl "180+1"]
[EndTime "15:53:29 PDT"]
[Termination "UK_23 won by resignation"]

1. e4 {[%clk 0:03:00.9]} 1... c5 {[%clk 0:02:59.5]} 2. Nf3 {[%clk 0:02:58.1]}
2... d6 {[%clk 0:02:59.7]} 3. Bb5+ {[%clk 0:02:57.6]} 3... Bd7 {[%clk
0:02:59.4]} 4. Bxd7+ {[%clk 0:02:56.1]} 4... Qxd7 {[%clk 0:03:00.3]} 5. c4
{[%clk 0:02:56.4]} 5... Nc6 {[%clk 0:03:00.6]} 6. O-O {[%clk 0:02:56.6]} 6...
Nf6 {[%clk 0:03:00.8]} 7. Nc3 {[%clk 0:02:56.5]} 7... g6 {[%clk 0:03:01.3]} 8.
d4 {[%clk 0:02:56.3]} 8... cxd4 {[%clk 0:03:02.2]} 9. Nxd4 {[%clk 0:02:57.2]}
9... Bg7 {[%clk 0:03:02.9]} 10. Be3 {[%clk 0:02:55.4]} 10... O-O {[%clk
0:03:03.3]} 11. f3 {[%clk 0:02:54.3]} 11... Rfc8 {[%clk 0:03:02.7]} 12. Rc1
{[%clk 0:02:54.4]} 12... Ne8 {[%clk 0:03:00]} 13. Nde2 {[%clk 0:02:51.1]} 13...
Nc7 {[%clk 0:02:59.7]} 14. Qd2 {[%clk 0:02:50.5]} 14... Ne5 {[%clk 0:02:58.9]}
15. b3 {[%clk 0:02:50.9]} 15... b5 {[%clk 0:02:59]} 16. c5 {[%clk 0:02:35.2]}
16... dxc5 {[%clk 0:02:28.4]} 17. Qxd7 {[%clk 0:02:33.8]} 17... Nxd7 {[%clk
0:02:28.4]} 18. Rfd1 {[%clk 0:02:33.2]} 18... Nb6 {[%clk 0:01:23.7]} 19. Bxc5
{[%clk 0:02:30.4]} 19... Ne6 {[%clk 0:01:23.2]} 20. Bxe7 {[%clk 0:02:28]} 20...
b4 {[%clk 0:01:16]} 21. Nd5 {[%clk 0:02:27.2]} 21... Nxd5 {[%clk 0:00:39.9]} 22.
exd5 {[%clk 0:02:23.7]} 22... Rxc1 {[%clk 0:00:37.6]} 23. Rxc1 {[%clk
0:02:22.6]} 23... Nd4 {[%clk 0:00:37.8]} 24. Nxd4 {[%clk 0:02:20.5]} 24... Bxd4+
{[%clk 0:00:38.7]} 25. Kf1 {[%clk 0:02:21.3]} 25... a5 {[%clk 0:00:32.4]} 26. d6
{[%clk 0:02:21.6]} 26... Ra7 {[%clk 0:00:32.8]} 27. Rc8+ {[%clk 0:02:15.4]}
27... Kg7 {[%clk 0:00:32.7]} 28. Rc7 {[%clk 0:02:13]} 1-0

[Event "Late-Titled-Tuesday-Blitz-October-24-2023"]
[Site "Chess.com"]
[Date "2023.10.24"]
[Round "10"]
[White "acertijo08"]
[Black "campochess"]
[Result "1-0"]
[WhiteElo "2357"]
[BlackElo "2201"]
[TimeControl "180+1"]
[EndTime "15:53:34 PDT"]
[Termination "acertijo08 won by checkmate"]

1. d4 {[%clk 0:03:00.9]} 1... Nf6 {[%clk 0:02:59.1]} 2. c4 {[%clk 0:03:01]} 2...
g6 {[%clk 0:02:59.2]} 3. Nc3 {[%clk 0:03:00.5]} 3... d5 {[%clk 0:02:59.2]} 4.
Nf3 {[%clk 0:02:57.9]} 4... Bg7 {[%clk 0:02:58.3]} 5. Qb3 {[%clk 0:02:57]} 5...
dxc4 {[%clk 0:02:56.6]} 6. Qxc4 {[%clk 0:02:57.8]} 6... O-O {[%clk 0:02:56]} 7.
e4 {[%clk 0:02:58.1]} 7... Nfd7 {[%clk 0:02:50]} 8. Be3 {[%clk 0:02:56]} 8...
Nb6 {[%clk 0:02:49]} 9. Qb3 {[%clk 0:02:55.4]} 9... Nc6 {[%clk 0:02:48.5]} 10.
Rd1 {[%clk 0:02:52.8]} 10... Bg4 {[%clk 0:02:41.2]} 11. Be2 {[%clk 0:02:52.7]}
11... Bxf3 {[%clk 0:02:35.1]} 12. Bxf3 {[%clk 0:02:48]} 12... Nxd4 {[%clk
0:02:34.6]} 13. Bxd4 {[%clk 0:02:37.2]} 13... Bxd4 {[%clk 0:02:32.9]} 14. O-O
{[%clk 0:02:37.4]} 14... e5 {[%clk 0:02:32.2]} 15. a4 {[%clk 0:02:21.2]} 15...
c6 {[%clk 0:02:29.2]} 16. a5 {[%clk 0:02:20.6]} 16... Nd7 {[%clk 0:02:29.2]} 17.
Qxb7 {[%clk 0:02:19.3]} 17... Nc5 {[%clk 0:02:25.9]} 18. Qxc6 {[%clk 0:02:17.8]}
18... Rc8 {[%clk 0:02:25.2]} 19. Qb5 {[%clk 0:02:16.3]} 19... Rb8 {[%clk
0:02:24.7]} 20. Qe2 {[%clk 0:02:09.4]} 20... Qxa5 {[%clk 0:02:23.6]} 21. Nd5
{[%clk 0:01:52.8]} 21... Rxb2 {[%clk 0:02:17.1]} 22. Qc4 {[%clk 0:01:52.8]}
22... Qa2 {[%clk 0:02:10.4]} 23. Rxd4 {[%clk 0:01:50.2]} 23... exd4 {[%clk
0:01:57.8]} 24. Qxc5 {[%clk 0:01:50.1]} 24... d3 {[%clk 0:01:46.8]} 25. Nf6+
{[%clk 0:01:45.8]} 25... Kg7 {[%clk 0:01:46.1]} 26. Qd4 {[%clk 0:01:46]} 26...
Rbb8 {[%clk 0:00:56.7]} 27. Ne8+ {[%clk 0:01:39.3]} 27... Kh6 {[%clk 0:00:56]}
28. Qg7+ {[%clk 0:01:39.3]} 28... Kg5 {[%clk 0:00:55.4]} 29. h4+ {[%clk
0:01:35.5]} 29... Kf4 {[%clk 0:00:45.6]} 30. Qf6# {[%clk 0:01:35.3]} 1-0

[Event "Late-Titled-Tuesday-Blitz-October-24-2023"]
[Site "Chess.com"]
[Date "2023.10.24"]
[Round "10"]
[White "KorolDimitriy75"]
[Black "Freeeeeeeeeeeeeeeeee"]
[Result "0-1"]
[WhiteElo "2350"]
[BlackElo "2077"]
[TimeControl "180+1"]
[EndTime "15:54:29 PDT"]
[Termination "Freeeeeeeeeeeeeeeeee won on time"]

1. d4 {[%clk 0:03:00.9]} 1... d5 {[%clk 0:02:56.8]} 2. c4 {[%clk 0:03:01.1]}
2... e6 {[%clk 0:02:55.4]} 3. Nc3 {[%clk 0:03:01.6]} 3... c6 {[%clk 0:02:53.8]}
4. e3 {[%clk 0:03:00.8]} 4... f5 {[%clk 0:02:53.2]} 5. f4 {[%clk 0:03:00.7]}
5... Nf6 {[%clk 0:02:52.6]} 6. Nf3 {[%clk 0:03:01]} 6... Bd6 {[%clk 0:02:53]} 7.
Be2 {[%clk 0:03:00.8]} 7... O-O {[%clk 0:02:53.6]} 8. O-O {[%clk 0:03:00.8]}
8... Nbd7 {[%clk 0:02:54.2]} 9. Ne5 {[%clk 0:02:56.6]} 9... Ne4 {[%clk
0:02:52.5]} 10. Nxe4 {[%clk 0:02:55.2]} 10... fxe4 {[%clk 0:02:52.2]} 11. Bd2
{[%clk 0:02:54.5]} 11... Nxe5 {[%clk 0:02:51.7]} 12. fxe5 {[%clk 0:02:54.6]}
12... Rxf1+ {[%clk 0:02:50.8]} 13. Bxf1 {[%clk 0:02:53.2]} 13... Bf8 {[%clk
0:02:51.7]} 14. Qb3 {[%clk 0:02:52.1]} 14... Rb8 {[%clk 0:02:38.2]} 15. Be2
{[%clk 0:02:39.6]} 15... b6 {[%clk 0:02:37.4]} 16. Bb4 {[%clk 0:02:26]} 16... c5
{[%clk 0:02:35.7]} 17. Bxc5 {[%clk 0:02:23.1]} 17... Bxc5 {[%clk 0:02:31]} 18.
dxc5 {[%clk 0:02:22.8]} 18... d4 {[%clk 0:02:26.9]} 19. exd4 {[%clk 0:01:04.7]}
19... Qxd4+ {[%clk 0:02:26.5]} 20. Kh1 {[%clk 0:01:03.7]} 20... Qxc5 {[%clk
0:02:24.8]} 21. Qc3 {[%clk 0:00:25.6]} 21... Bb7 {[%clk 0:02:15.6]} 22. Re1
{[%clk 0:00:10.5]} 22... Qf2 {[%clk 0:02:10.6]} 23. Bf1 {[%clk 0:00:10]} 23...
Rf8 {[%clk 0:02:04.9]} 24. h3 {[%clk 0:00:08.6]} 24... e3 {[%clk 0:01:55.8]} 25.
Kh2 {[%clk 0:00:07.5]} 25... e2 {[%clk 0:01:53.9]} 26. Rxe2 {[%clk 0:00:06.6]}
26... Qxf1 {[%clk 0:01:51.5]} 27. Qe3 {[%clk 0:00:06.5]} 27... Qf4+ {[%clk
0:01:37.9]} 28. Qxf4 {[%clk 0:00:06]} 28... Rxf4 {[%clk 0:01:38.8]} 29. b3
{[%clk 0:00:05]} 29... Rd4 {[%clk 0:01:35.7]} 30. Kg3 {[%clk 0:00:03.5]} 30...
Be4 {[%clk 0:01:34.9]} 31. Re1 {[%clk 0:00:02]} 31... Bf5 {[%clk 0:01:35.3]} 32.
Re2 {[%clk 0:00:01.2]} 32... Kf8 {[%clk 0:01:34.8]} 33. Kf2 {[%clk 0:00:01.1]}
33... h5 {[%clk 0:01:34.3]} 34. g3 {[%clk 0:00:01.4]} 34... Bxh3 {[%clk
0:01:33.8]} 0-1

[Event "Late-Titled-Tuesday-Blitz-October-24-2023"]
[Site "Chess.com"]
[Date "2023.10.24"]
[Round "10"]
[White "PapaieDudu"]
[Black "leoduarte"]
[Result "1-0"]
[WhiteElo "2341"]
[BlackElo "2388"]
[TimeControl "180+1"]
[EndTime "15:54:35 PDT"]
[Termination "PapaieDudu won by resignation"]

1. e4 {[%clk 0:03:00.9]} 1... c5 {[%clk 0:02:59.1]} 2. Nf3 {[%clk 0:03:01]} 2...
e6 {[%clk 0:02:59]} 3. d4 {[%clk 0:03:01.9]} 3... cxd4 {[%clk 0:02:59.8]} 4. c3
{[%clk 0:03:02.8]} 4... Nf6 {[%clk 0:02:54.9]} 5. e5 {[%clk 0:03:03.5]} 5... Nd5
{[%clk 0:02:54.6]} 6. cxd4 {[%clk 0:03:04.4]} 6... d6 {[%clk 0:02:55.2]} 7. Nc3
{[%clk 0:03:05.3]} 7... Nxc3 {[%clk 0:02:54.2]} 8. bxc3 {[%clk 0:03:06.2]} 8...
Qc7 {[%clk 0:02:54.2]} 9. Be3 {[%clk 0:03:04.4]} 9... Qxc3+ {[%clk 0:02:48.5]}
10. Nd2 {[%clk 0:03:04.5]} 10... Bd7 {[%clk 0:02:43.9]} 11. Rc1 {[%clk
0:03:01.9]} 11... Qa3 {[%clk 0:02:42]} 12. Nc4 {[%clk 0:03:01.6]} 12... Qa4
{[%clk 0:02:22.4]} 13. Nxd6+ {[%clk 0:03:01.2]} 13... Bxd6 {[%clk 0:02:21.7]}
14. Qxa4 {[%clk 0:03:00.5]} 14... Bxa4 {[%clk 0:02:21.7]} 15. Rc8+ {[%clk
0:03:00.5]} 15... Kd7 {[%clk 0:02:11.7]} 16. Rxh8 {[%clk 0:02:59.9]} 16... Bb4+
{[%clk 0:02:10.7]} 17. Bd2 {[%clk 0:02:59.9]} 17... Bxd2+ {[%clk 0:02:10.3]} 18.
Kxd2 {[%clk 0:03:00.8]} 18... Bc6 {[%clk 0:02:10.5]} 19. Rxh7 {[%clk 0:02:59.7]}
19... Na6 {[%clk 0:02:07.7]} 20. Rxg7 {[%clk 0:03:00.3]} 20... Ke7 {[%clk
0:02:08]} 21. Rg1 {[%clk 0:02:56.2]} 21... Nb4 {[%clk 0:02:07.6]} 22. a3 {[%clk
0:02:54.2]} 22... Nd5 {[%clk 0:02:08.2]} 23. g3 {[%clk 0:02:52.6]} 23... Rh8
{[%clk 0:02:08.4]} 24. h4 {[%clk 0:02:52.6]} 24... Nc7 {[%clk 0:02:05.6]} 25.
Bg2 {[%clk 0:02:51.4]} 25... Bxg2 {[%clk 0:01:59.9]} 26. Rxg2 {[%clk 0:02:51.6]}
26... Rd8 {[%clk 0:02:00.6]} 27. Rg4 {[%clk 0:02:49.5]} 27... Nb5 {[%clk
0:01:59.2]} 28. Kd3 {[%clk 0:02:45.6]} 28... Nxa3 {[%clk 0:01:59.2]} 29. f4
{[%clk 0:02:46.1]} 29... b5 {[%clk 0:01:56.8]} 30. Rb2 {[%clk 0:02:42.5]} 30...
a5 {[%clk 0:01:52.7]} 31. f5 {[%clk 0:02:40.4]} 31... exf5 {[%clk 0:01:52.2]}
32. Rf4 {[%clk 0:02:40.7]} 32... Ke6 {[%clk 0:01:42.4]} 33. g4 {[%clk
0:02:41.3]} 33... fxg4 {[%clk 0:01:41.9]} 34. Rxg4 {[%clk 0:02:40.6]} 34... b4
{[%clk 0:01:40.6]} 35. Rf4 {[%clk 0:02:40]} 35... Rc8 {[%clk 0:01:34.4]} 36. Ke4
{[%clk 0:02:38.9]} 36... Rc4 {[%clk 0:01:26.4]} 37. Rf6+ {[%clk 0:02:39]} 37...
Ke7 {[%clk 0:01:26.6]} 38. Rbf2 {[%clk 0:02:37.3]} 38... Kd7 {[%clk 0:01:19.8]}
39. Rxf7+ {[%clk 0:02:37.4]} 39... Kc6 {[%clk 0:01:20.5]} 40. R2f6+ {[%clk
0:02:31.4]} 40... Kb5 {[%clk 0:01:20.2]} 41. Rb7+ {[%clk 0:02:31.8]} 41... Ka4
{[%clk 0:01:20]} 42. e6 {[%clk 0:02:24.5]} 42... Rc1 {[%clk 0:01:17.9]} 43. e7
{[%clk 0:02:24]} 43... Re1+ {[%clk 0:01:17.9]} 44. Kd3 {[%clk 0:02:24.4]} 44...
b3 {[%clk 0:01:17.1]} 45. Rc6 {[%clk 0:02:16.3]} 45... Rxe7 {[%clk 0:00:24.7]}
46. Rxe7 {[%clk 0:02:14.1]} 46... b2 {[%clk 0:00:25.3]} 47. Rb7 {[%clk
0:02:07.5]} 47... Nb5 {[%clk 0:00:13.8]} 48. Rc4+ {[%clk 0:02:04.8]} 48... Ka3
{[%clk 0:00:14.4]} 49. Rxb5 {[%clk 0:02:05.2]} 49... a4 {[%clk 0:00:15]} 50.
Rxa4+ {[%clk 0:02:03.9]} 50... Kxa4 {[%clk 0:00:13.7]} 51. Rxb2 {[%clk
0:02:04.7]} 51... Ka5 {[%clk 0:00:14]} 52. Kc4 {[%clk 0:02:04.4]} 1-0

[Event "Late-Titled-Tuesday-Blitz-October-24-2023"]
[Site "Chess.com"]
[Date "2023.10.24"]
[Round "10"]
[White "Hirna2005"]
[Black "Bala-Afiada"]
[Result "1-0"]
[WhiteElo "2307"]
[BlackElo "1860"]
[TimeControl "180+1"]
[EndTime "15:54:50 PDT"]
[Termination "Hirna2005 won by resignation"]

1. e4 {[%clk 0:02:56.1]} 1... c5 {[%clk 0:03:00]} 2. c3 {[%clk 0:02:55.6]} 2...
Nf6 {[%clk 0:02:59.6]} 3. e5 {[%clk 0:02:55.7]} 3... Nd5 {[%clk 0:02:59.9]} 4.
Nf3 {[%clk 0:02:56.1]} 4... d6 {[%clk 0:02:58.1]} 5. Bc4 {[%clk 0:02:56.1]} 5...
dxe5 {[%clk 0:02:51]} 6. Nxe5 {[%clk 0:02:54.9]} 6... Nc6 {[%clk 0:02:44.4]} 7.
Nxf7 {[%clk 0:02:44.6]} 7... Kxf7 {[%clk 0:02:38.5]} 8. Qf3+ {[%clk 0:02:43.4]}
8... Ke8 {[%clk 0:02:36.2]} 9. Bxd5 {[%clk 0:02:42.6]} 9... e6 {[%clk
0:02:31.6]} 10. Bxc6+ {[%clk 0:02:39.5]} 10... bxc6 {[%clk 0:02:32.1]} 11. Qxc6+
{[%clk 0:02:38.8]} 11... Bd7 {[%clk 0:02:32.7]} 12. Qf3 {[%clk 0:02:37.9]} 12...
Be7 {[%clk 0:02:28.6]} 13. O-O {[%clk 0:02:35.3]} 13... Rf8 {[%clk 0:02:27.4]}
14. Qh5+ {[%clk 0:02:34.7]} 14... g6 {[%clk 0:02:27.5]} 15. Qxh7 {[%clk
0:02:34.6]} 15... g5 {[%clk 0:02:20.4]} 16. Qg6+ {[%clk 0:02:30.1]} 16... Rf7
{[%clk 0:02:20.4]} 17. d4 {[%clk 0:02:29.4]} 17... Qb6 {[%clk 0:02:02.7]} 18.
dxc5 {[%clk 0:02:02.6]} 18... Qxc5 {[%clk 0:01:53.7]} 19. Be3 {[%clk 0:01:59.3]}
19... Qb5 {[%clk 0:01:45.9]} 20. b3 {[%clk 0:01:49.6]} 20... Kf8 {[%clk
0:01:34.9]} 21. Nd2 {[%clk 0:01:43.8]} 21... Rg7 {[%clk 0:01:33.5]} 22. Qe4
{[%clk 0:01:35.4]} 22... Bc6 {[%clk 0:01:30.5]} 23. Qxe6 {[%clk 0:01:32.9]}
23... Rd8 {[%clk 0:01:16.1]} 24. c4 {[%clk 0:01:30.1]} 24... Qb7 {[%clk
0:01:14.7]} 25. f3 {[%clk 0:01:24.3]} 25... Rd6 {[%clk 0:01:09.7]} 26. Qe5
{[%clk 0:01:11.1]} 26... Qd7 {[%clk 0:00:44.5]} 27. Ne4 {[%clk 0:01:09.2]} 27...
Re6 {[%clk 0:00:39.8]} 28. Qb8+ {[%clk 0:01:03.4]} 28... Bd8 {[%clk 0:00:38.2]}
29. Nc5 {[%clk 0:00:52.5]} 29... Qe7 {[%clk 0:00:25.7]} 30. Nxe6+ {[%clk
0:00:45.5]} 1-0